bitfinex/quotes_ETHUSD_20240618
["timestamp","ask_amount","ask_price","bid_price","bid_amount"]
[1718723036977,2.92614,3417.5,3416.9,0.75]
[1718723037177,2.926,3417.7,3416.9,0.75]
[1718723037467,2.92606,3417.6,3416.9,0.75]
[1718723037633,2.92613,3417.5,3416.9,0.75]
[1718723038476,3.53471086,3417.7,3416.9,0.75]
[1718723038630,0.60871086,3417.7,3416.9,0.75]
[1718723038834,2.92595,3417.7,3416.9,0.75]
[1718723039172,3.53458086,3417.8,3416.9,0.75]
[1718723039376,0.60871086,3417.8,3417.1,0.75]
[1718723039563,3.53448086,3417.9,3417.5,0.75]
[1718723039886,0.60871086,3418.0,3417.5,0.75]
[1718723040385,2.92586,3417.8,3417.0,0.75]
[1718723040548,0.60871086,3417.9,3417.5,0.75]
[1718723040872,0.60871086,3418.0,3417.5,0.75]
[1718723041073,3.53440086,3418.0,3417.5,0.75]
[1718723041378,3.53450086,3417.9,3417.3,0.75]
[1718723041535,3.53449086,3417.9,3417.2,0.75]
[1718723041740,0.60871086,3417.9,3417.5,0.75]
[1718723041940,0.60871086,3418.0,3417.5,0.75]
[1718723042273,0.91808186,3418.1,3417.7,0.75]
[1718723042274,0.60871086,3417.9,3417.7,0.75]
[1718723042480,0.60871086,3418.3,3418.1,0.75]
[1718723042641,0.91808186,3418.4,3418.1,0.75]
[1718723042642,0.60871086,3418.4,3418.1,0.75]
[1718723042988,0.60871086,3418.5,3418.1,0.75]
[1718723043487,2.92567,3418.1,3417.7,0.75]
[1718723043789,3.84338186,3418.5,3417.7,0.75]
[1718723043790,0.60871086,3418.2,3417.7,0.75]
[1718723043968,3.53424086,3418.2,3417.7,0.75]
[1718723044146,2.92569,3418.0,3417.5,0.75]
[1718723044339,0.60871086,3418.1,3417.7,0.75]
[1718723044553,2.92569,3418.0,3417.5,0.75]
[1718723044760,3.53431086,3418.1,3417.5,0.75]
[1718723044957,3.53441086,3418.0,3417.5,0.75]
[1718723045243,0.60871086,3417.8,3417.5,0.75]
[1718723045703,2.92629,3417.3,3417.0,0.75]
[1718723045902,0.60871086,3417.3,3417.0,0.75]
[1718723046346,2.92644,3417.2,3416.8,0.75]
[1718723046543,2.92653,3417.1,3416.8,0.75]
[1718723046746,0.60871086,3417.1,3416.8,0.75]
[1718723047101,2.92671,3416.8,3416.5,0.75]
[1718723047464,0.60871086,3416.9,3416.5,0.75]
[1718723047465,2.92682,3416.7,3416.5,0.75]
[1718723047661,0.60871086,3416.8,3416.5,0.75]
[1718723048095,0.60871086,3417.0,3416.7,0.75]
[1718723048387,2.9268,3416.8,3416.5,0.75]
[1718723049342,5.85376,3416.6,3416.5,0.75]
[1718723049558,0.60871086,3416.8,3416.1,0.75]
[1718723049846,2.9274,3416.0,3415.7,0.75]
[1718723050091,2.9274,3416.0,3415.6,0.75]
[1718723050092,2.92765,3415.7,3415.6,0.75]
[1718723050247,0.60871086,3416.2,3415.5,0.75]
[1718723050558,0.60871086,3416.4,3415.9,0.75]
[1718723050766,2.9274,3416.0,3415.9,0.75]
[1718723051195,0.91808186,3416.6,3415.5,0.1922737]
[1718723051196,2.92734,3416.1,3415.5,0.75]
[1718723051488,2.92763,3415.8,3415.5,0.75]
[1718723051648,2.92743,3416.0,3415.5,0.75]
[1718723051875,2.9274,3416.0,3415.9,0.75]
[1718723052198,2.9274,3416.0,3415.7,0.75]
[1718723052199,2.9275,3415.9,3415.7,0.75]
[1718723052483,2.92764,3415.8,3415.7,0.75]
[1718723052699,2.92729,3416.2,3415.7,0.75]
[1718723052990,5.85514,3415.8,3415.7,0.75]
[1718723053289,2.92781,3415.6,3415.3,0.75]
[1718723053610,0.91808186,3416.5,3415.1,0.75]
[1718723053611,2.92782,3415.5,3415.1,0.75]
[1718723053770,2.92808,3415.2,3415.1,0.75]
[1718723053967,5.85616,3415.2,3415.1,0.75]
[1718723054291,2.928,3415.3,3414.8,0.75]
[1718723054585,2.92825,3415.0,3414.8,0.75]
[1718723054890,2.92817,3415.1,3415.0,0.75]
[1718723055970,0.60871086,3415.9,3415.2,0.75]
[1718723056270,2.92732,3416.1,3415.0,0.75]
[1718723056472,2.92778,3415.6,3415.0,0.75]
[1718723056666,2.92795,3415.4,3415.2,0.75]
[1718723056988,2.92748,3415.9,3415.2,0.75]
[1718723057355,2.92732,3416.1,3415.1,0.75]
[1718723057356,2.92764,3415.8,3415.1,0.75]
[1718723057667,2.92786,3415.5,3415.1,0.75]
[1718723058054,2.92764,3415.8,3415.1,0.75]
[1718723058055,0.60871086,3416.1,3415.1,0.75]
[1718723058386,0.60871086,3416.1,3413.5,7.43]
[1718723058387,2.92829,3415.0,3414.8,0.75]
[1718723058614,2.2992,3415.7,3414.8,0.75]
[1718723058615,2.92834,3414.9,3414.8,0.75]
[1718723058893,2.2992,3415.7,3414.5,0.75]
[1718723058894,2.9286,3414.6,3414.5,0.75]
[1718723059065,2.92885,3414.3,3414.2,0.75]
[1718723059262,2.92899,3414.2,3414.0,0.75]
[1718723059995,2.92884,3414.4,3414.2,0.75]
[1718723060151,2.92875,3414.5,3414.2,0.75]
[1718723060152,2.92873,3414.5,3414.2,0.75]
[1718723060348,2.92873,3414.5,3413.4,2.799]
[1718723060349,0.2936,3414.9,3413.7,0.75]
[1718723060580,2.92859,3414.7,3413.5,3.75]
[1718723060783,2.92859,3414.7,3413.7,0.75]
[1718723060784,2.92925,3413.9,3413.7,0.75]
[1718723061199,2.92928,3413.9,3413.7,0.75]
[1718723061354,2.92912,3414.0,3413.7,0.75]
[1718723061768,2.9292,3413.9,3413.7,0.75]
[1718723061962,2.9292,3413.9,3413.5,0.75]
[1718723062255,2.92929,3413.8,3413.5,0.75]
[1718723062468,2.92963,3413.4,3413.3,0.75]
[1718723062687,2.92937,3413.7,3413.0,0.75]
[1718723062987,2.92963,3413.4,3413.0,0.75]
[1718723063288,2.92955,3413.5,3413.0,0.75]
[1718723063659,2.92988,3413.1,3413.0,0.75]
[1718723063854,2.93015,3412.8,3411.9,2.2834]
[1718723064095,2.92949,3413.6,3411.9,2.2834]
[1718723064096,2.92976,3413.3,3412.4,0.75]
[1718723064260,2.93016,3412.8,3412.3,0.75]
[1718723064459,2.92957,3413.5,3412.6,0.75]
[1718723064666,2.92989,3413.1,3412.6,0.75]
[1718723064965,2.92938,3413.7,3412.9,0.75]
[1718723065168,7.43,3413.9,3412.9,0.75]
[1718723065169,7.43,3413.9,3413.3,0.75]
[1718723065387,10.35868,3414.6,3413.7,0.75]
[1718723065594,2.92845,3414.8,3413.9,0.75]
[1718723065894,2.92861,3414.6,3413.9,0.75]
[1718723066096,2.92877,3414.4,3413.9,0.75]
[1718723066293,2.92861,3414.6,3413.9,0.75]
[1718723066479,2.92868,3414.5,3414.1,0.75]
[1718723066799,2.92889,3414.3,3414.1,0.75]
[1718723066956,2.92938,3413.7,3413.3,0.75]
[1718723067157,2.92896,3414.2,3413.1,0.75]
[1718723067402,2.92963,3413.4,3413.1,0.75]
[1718723067584,9.72,3414.4,3412.3,2.93049]
[1718723067585,2.92912,3414.0,3413.3,0.75]
[1718723067752,2.92965,3413.4,3413.1,0.75]
[1718723068353,2.92965,3413.4,3412.3,5.28425]
[1718723068354,2.92988,3413.1,3412.7,0.75]
[1718723068576,2.92965,3413.4,3412.1,0.5576483]
[1718723068577,3.22324,3413.4,3412.4,0.75]
[1718723068798,2.93033,3412.6,3412.2,0.75]
[1718723069277,2.93049,3412.4,3412.2,0.75]
[1718723069877,2.92999,3413.0,3412.4,0.75]
[1718723070079,0.2936,3413.2,3412.4,0.75]
[1718723070281,0.2936,3413.2,3412.2,0.75]
[1718723070282,2.93042,3412.5,3412.2,0.75]
[1718723070875,2.93057,3412.3,3412.2,0.75]
[1718723071073,3.22356,3413.1,3411.8,3.0]
[1718723071074,2.93015,3412.8,3411.8,0.75]
[1718723071395,2.93056,3412.4,3411.8,0.75]
[1718723071772,2.93039,3412.6,3412.0,0.75]
[1718723071975,2.93002,3413.0,3412.0,0.75]
[1718723071976,2.93041,3412.5,3412.0,0.75]
[1718723072302,2.93057,3412.3,3412.0,0.75]
[1718723072504,2.9304,3412.5,3412.0,0.75]
[1718723072708,2.93057,3412.4,3412.0,0.75]
[1718723073802,2.93039,3412.6,3412.0,0.75]
[1718723074005,2.93047,3412.5,3412.0,0.75]
[1718723074173,0.2936,3413.2,3412.0,0.75]
[1718723074174,2.93031,3412.7,3412.0,0.75]
[1718723074377,2.93049,3412.4,3412.0,0.75]
[1718723075397,2.93041,3412.5,3412.0,0.75]
[1718723075725,5.26251,3413.4,3412.4,0.75]
[1718723075726,2.92991,3413.1,3412.4,0.75]
[1718723076011,3.22336,3413.3,3412.4,0.75]
[1718723076174,3.22336,3413.3,3412.6,0.75]
[1718723076175,0.2936,3413.3,3412.6,0.75]
[1718723076377,3.0,3413.7,3413.0,0.75]
[1718723076378,2.92938,3413.7,3413.0,0.75]
[1718723076594,12.78654,3414.1,3413.4,0.75]
[1718723076595,7.43,3414.1,3413.4,0.75]
[1718723076811,2.92928,3413.9,3413.4,0.75]
[1718723077024,2.92931,3413.8,3413.1,0.75]
[1718723077188,2.92956,3413.5,3413.1,0.75]
[1718723077519,3.22262,3414.2,3413.1,0.75]
[1718723077691,2.92977,3413.3,3412.8,0.75]
[1718723077884,2.92987,3413.2,3412.8,0.75]
[1718723078076,2.92964,3413.4,3412.8,0.75]
[1718723078279,3.2228,3414.0,3413.4,0.75]
[1718723078922,5.4275,3414.6,3413.2,0.75]
[1718723078923,2.92937,3413.7,3413.2,0.75]
[1718723079221,3.0,3414.1,3412.8,0.75]
[1718723079429,2.92976,3413.3,3412.8,0.75]
[1718723079633,2.92954,3413.5,3412.8,0.75]
[1718723080202,2.92938,3413.7,3413.1,0.75]
[1718723080414,2.92958,3413.5,3413.1,0.75]
[1718723080817,2.92949,3413.6,3412.3,0.75]
[1718723081131,2.92949,3413.6,3411.6,3.3271738]
[1718723081132,2.93023,3412.7,3412.1,0.75]
[1718723081295,2.92998,3413.0,3412.4,0.75]
[1718723081494,0.2936,3413.1,3412.4,0.75]
[1718723081717,0.2936,3413.7,3412.4,0.75]
[1718723081926,2.92981,3413.2,3412.7,0.75]
[1718723082136,2.92981,3413.2,3412.0,2.93082]
[1718723082137,2.92946,3413.6,3413.0,0.75]
[1718723082332,2.92926,3413.9,3413.2,0.75]
[1718723082518,2.92926,3413.9,3412.1,3.0]
[1718723082519,2.92896,3414.2,3413.4,0.75]
[1718723082737,2.92896,3414.2,3412.9,0.05859319]
[1718723082738,7.43,3414.3,3413.6,0.75]
[1718723082901,2.92911,3414.0,3413.4,0.75]
[1718723083107,7.43,3414.3,3413.6,0.75]
[1718723083318,0.2936,3414.5,3414.0,0.75]
[1718723084018,3.22238,3414.4,3413.8,0.75]
[1718723084222,0.2936,3414.4,3414.0,0.75]
[1718723084429,0.2936,3414.4,3413.0,3.45315]
[1718723084430,2.92914,3414.0,3413.4,0.75]
[1718723084709,2.92914,3414.0,3412.9,2.3024]
[1718723084710,2.92947,3413.6,3413.2,0.75]
[1718723084911,2.92912,3414.0,3413.2,0.75]
[1718723084912,2.92955,3413.5,3413.2,0.75]
[1718723085242,2.92929,3413.8,3413.2,0.75]
[1718723085410,2.92929,3413.8,3412.9,2.3024]
[1718723085411,2.92946,3413.6,3413.0,0.75]
[1718723085734,2.92963,3413.4,3412.8,0.75]
[1718723085900,2.92971,3413.3,3412.6,0.75]
[1718723086305,2.92989,3413.1,3412.6,0.75]
[1718723086804,2.92989,3413.1,3411.8,2.93099]
[1718723086805,2.93016,3412.8,3412.2,0.75]
[1718723087243,2.93023,3412.7,3412.0,0.75]
[1718723087554,2.93008,3412.9,3412.0,0.75]
[1718723087555,2.93015,3412.8,3412.0,0.75]
[1718723087932,2.9304,3412.5,3412.0,0.75]
[1718723088320,2.93057,3412.3,3411.8,0.75]
[1718723088643,2.93073,3412.2,3411.8,0.75]
[1718723088956,2.93086,3412.0,3411.4,0.75]
[1718723089131,2.93088,3412.0,3411.4,0.75]
[1718723089331,2.93092,3411.9,3411.4,0.75]
[1718723089538,2.93084,3412.0,3411.4,0.75]
[1718723089866,2.93067,3412.2,3411.4,0.75]
[1718723090039,2.93037,3412.6,3411.8,0.75]
[1718723090434,2.93069,3412.2,3411.4,0.75]
[1718723090792,2.93094,3411.9,3411.4,0.75]
[1718723090932,2.93098,3411.9,3411.4,0.75]
[1718723091130,2.93098,3411.9,3410.9,3.0]
[1718723091131,2.93125,3411.6,3411.0,0.75]
[1718723091351,2.93126,3411.5,3411.0,0.75]
[1718723091541,2.9315,3411.3,3410.8,0.75]
[1718723092034,2.93126,3411.5,3410.8,0.75]
[1718723092238,2.93126,3411.5,3410.3,5.93229]
[1718723092239,7.43,3412.3,3411.0,0.75]
[1718723092566,17.6282,3412.6,3410.6,0.75]
[1718723092567,2.93091,3411.9,3410.6,0.75]
[1718723092770,2.93155,3411.2,3410.6,0.75]
[1718723092928,2.9313,3411.5,3410.4,0.75]
[1718723093137,3.0,3411.6,3410.2,0.75]
[1718723093138,2.93175,3411.0,3410.2,0.75]
[1718723093338,2.93194,3410.8,3410.2,0.75]
[1718723093648,2.93194,3410.8,3409.9,2.4651]
[1718723093844,2.93194,3410.8,3409.8,0.75]
[1718723093845,2.93212,3410.5,3409.8,0.75]
[1718723094168,2.93213,3410.5,3409.6,0.75]
[1718723094471,2.93221,3410.4,3409.6,0.75]
[1718723094878,2.93239,3410.2,3409.6,0.75]
[1718723095080,2.93238,3410.2,3409.6,0.75]
[1718723095374,2.9317,3411.0,3409.6,0.75]
[1718723095375,2.9323,3410.3,3409.6,0.75]
[1718723095688,2.93203,3410.6,3409.6,0.75]
[1718723095972,2.93197,3410.7,3409.6,0.75]
[1718723096475,2.9323,3410.3,3409.6,0.75]
[1718723096980,2.93197,3410.7,3409.2,0.75]
[1718723096981,0.2936,3410.7,3409.2,0.75]
[1718723097193,2.93202,3410.7,3409.7,0.75]
[1718723097401,2.93229,3410.3,3409.5,0.75]
[1718723097691,2.93229,3410.3,3409.1,2.9333]
[1718723097692,2.9322,3410.4,3409.2,2.99188408]
[1718723097897,2.93263,3409.9,3409.1,0.75]
[1718723098061,2.93229,3410.3,3409.4,0.75]
[1718723098254,2.93245,3410.2,3409.4,0.75]
[1718723098556,0.2936,3410.4,3408.9,0.75]
[1718723098557,2.93273,3409.8,3408.9,0.75]
[1718723098771,2.93306,3409.4,3408.7,0.75]
[1718723098964,2.93291,3409.6,3408.3,0.75]
[1718723098965,2.93329,3409.2,3408.3,0.75]
[1718723099194,2.93292,3409.6,3408.5,0.75]
[1718723099195,2.93291,3409.6,3408.5,0.75]
[1718723099488,2.93341,3409.0,3408.3,0.75]
[1718723099656,2.93324,3409.2,3408.3,0.75]
[1718723099856,2.93324,3409.2,3407.9,5.5617]
[1718723099857,2.9335,3408.9,3408.1,0.75]
[1718723100082,2.9335,3408.9,3407.9,2.62735]
[1718723100083,0.8436,3409.5,3407.9,2.3885]
[1718723100286,2.93378,3408.6,3407.8,0.75]
[1718723100520,0.8436,3409.5,3408.0,0.75]
[1718723100521,0.2936,3409.3,3408.0,0.75]
[1718723100819,2.93342,3409.0,3408.0,0.75]
[1718723100959,2.93351,3408.9,3408.0,0.75]
[1718723101161,2.93333,3409.1,3408.0,0.75]
[1718723101389,3.22669,3409.4,3408.0,0.75]
[1718723101390,0.2936,3409.4,3408.0,0.75]
[1718723101613,0.55,3409.6,3407.9,0.05868127]
[1718723101614,0.2936,3409.5,3408.3,0.75]
[1718723101768,2.93352,3408.9,3408.3,0.75]
[1718723102132,2.93402,3408.3,3407.6,0.75]
[1718723102261,2.93368,3408.7,3407.8,0.75]
[1718723102464,3.2936,3409.0,3407.9,0.80868714]
[1718723102685,3.2936,3409.0,3407.7,0.75]
[1718723102898,2.93401,3408.4,3407.7,0.75]
[1718723103089,2.9341,3408.2,3407.4,0.75]
[1718723103412,2.9341,3408.2,3407.3,2.3697]
[1718723103413,2.93427,3408.0,3407.3,3.1197]
[1718723103609,2.93401,3408.3,3407.3,0.75]
[1718723103930,12.9205,3409.0,3408.0,0.75]
[1718723103931,7.43,3409.0,3408.0,0.75]
[1718723104075,7.43,3409.0,3407.7,2.4784]
[1718723104076,0.2936,3409.2,3408.2,0.75]
[1718723104277,0.2936,3409.2,3407.8,0.05867931]
[1718723104278,7.43,3409.8,3408.7,2.93366]
[1718723104516,2.93291,3409.6,3408.7,0.75]
[1718723104675,2.93314,3409.4,3408.7,0.75]
[1718723104873,2.93291,3409.6,3408.7,0.75]
[1718723105174,0.2936,3410.2,3409.4,0.75]
[1718723105410,5.4404,3411.0,3409.9,0.75]
[1718723105411,12.80213,3411.0,3409.9,0.75]
[1718723105712,3.0,3411.8,3409.9,0.75]
[1718723105713,2.93126,3411.5,3410.4,0.75]
[1718723105872,13.41164319,3411.8,3410.1,0.75]
[1718723105873,2.93186,3410.9,3410.1,0.75]
[1718723106079,2.93125,3411.6,3410.7,0.75]
[1718723106304,2.93079,3412.1,3410.7,0.75]
[1718723106504,1.22410914,3412.8,3410.7,0.75]
[1718723106505,2.2687,3412.8,3411.3,0.75]
[1718723106705,2.2687,3412.8,3410.7,2.93193]
[1718723106706,2.93036,3412.6,3411.5,0.75]
[1718723107012,2.93036,3412.6,3410.1,3.538]
[1718723107013,0.2936,3412.6,3411.0,0.75]
[1718723107214,2.93099,3411.9,3411.1,0.75]
[1718723107512,2.93075,3412.1,3411.4,0.75]
[1718723107815,2.93075,3412.1,3410.5,3.0]
[1718723107816,2.93049,3412.4,3411.7,0.75]
[1718723107984,2.92985,3413.2,3411.5,0.05862266]
[1718723107985,2.92998,3413.0,3412.1,0.75]
[1718723108180,0.2936,3413.2,3411.6,0.75]
[1718723108383,2.92998,3413.0,3411.8,0.75]
[1718723108606,3.0,3413.1,3411.8,0.75]
[1718723108607,2.93028,3412.7,3411.8,0.75]
[1718723108819,2.93018,3412.8,3412.2,0.75]
[1718723108981,2.93033,3412.6,3411.6,0.75]
[1718723109187,2.93023,3412.7,3411.3,0.75]
[1718723109523,2.93023,3412.7,3410.8,3.0]
[1718723109524,2.92999,3413.0,3412.1,0.75]
[1718723109682,2.93032,3412.6,3412.1,0.75]
[1718723110140,2.93023,3412.7,3412.1,0.75]
[1718723110412,2.92984,3413.2,3412.6,0.75]
[1718723110615,2.9299,3413.1,3412.6,0.75]
[1718723110921,2.9299,3413.1,3411.9,2.93083]
[1718723110922,2.92929,3413.8,3413.0,0.75]
[1718723111093,2.92946,3413.6,3413.0,0.75]
[1718723111424,3.0,3414.5,3412.1,2.4674]
[1718723111425,2.92895,3414.2,3413.5,0.75]
[1718723111622,2.92918,3414.0,3413.5,0.75]
[1718723111807,1.35871086,3415.4,3412.3,3.0]
[1718723111808,2.92969,3413.4,3413.0,0.75]
[1718723112016,3.0,3414.6,3412.3,3.0]
[1718723112017,0.2936,3413.9,3412.6,0.75]
[1718723112184,0.2936,3413.9,3412.2,3.0]
[1718723112185,2.92948,3413.6,3413.0,0.75]
[1718723112384,0.2936,3413.9,3412.2,3.0]
[1718723112385,2.92926,3413.9,3413.4,0.75]
[1718723112585,2.92876,3414.5,3413.6,0.75]
[1718723112787,4.22410914,3415.2,3414.0,0.75]
[1718723112788,3.0,3415.2,3414.0,0.75]
[1718723113010,1.22410914,3415.8,3414.2,0.75]
[1718723113011,0.2936,3415.8,3414.2,0.75]
[1718723113224,2.92809,3415.2,3414.4,0.75]
[1718723113521,2.92796,3415.4,3414.4,0.75]
[1718723113725,2.92916,3414.0,3413.6,0.75]
[1718723114021,2.92965,3413.4,3413.1,0.75]
[1718723114332,2.92898,3414.2,3413.5,0.75]
[1718723114614,3.22248,3414.3,3413.0,0.75]
[1718723114615,2.92962,3413.5,3413.0,0.75]
[1718723114815,0.2936,3414.3,3413.4,0.75]
[1718723115020,2.92868,3414.5,3413.9,0.75]
[1718723115186,2.92869,3414.5,3413.9,0.75]
[1718723115389,2.92869,3414.5,3413.0,2.92988]
[1718723115390,5.92845,3414.8,3414.1,0.75]
[1718723115597,2.92862,3414.6,3413.6,0.75]
[1718723115924,3.0,3415.2,3413.0,3.0]
[1718723115925,2.92916,3414.0,3413.4,0.75]
[1718723116127,3.2221,3414.8,3414.1,0.75]
[1718723116295,3.0,3415.4,3414.6,0.75]
[1718723116686,2.92776,3415.6,3414.6,0.75]
[1718723116886,2.92776,3415.6,3413.6,5.26804]
[1718723116887,2.92819,3415.1,3414.3,0.75]
[1718723117147,0.2936,3415.4,3414.6,0.75]
[1718723117308,2.92792,3415.4,3414.6,0.75]
[1718723117496,2.92827,3415.0,3414.4,0.75]
[1718723118091,2.92815,3415.2,3414.4,0.75]
[1718723118288,2.92863,3414.6,3414.2,0.75]
[1718723118495,2.92786,3415.5,3414.0,0.75]
[1718723118496,2.92878,3414.4,3414.0,0.75]
[1718723118810,10.7236,3415.3,3413.8,0.75]
[1718723118811,2.92868,3414.6,3413.8,0.75]
[1718723119016,0.2936,3414.6,3413.6,0.75]
[1718723119195,2.92919,3414.0,3413.6,0.75]
[1718723119719,2.92919,3414.0,3412.8,2.2662]
[1718723119720,2.92943,3413.7,3413.4,0.75]
[1718723120106,2.92925,3413.9,3413.4,0.75]
[1718723120418,2.92938,3413.7,3413.4,0.75]
[1718723121142,2.92902,3414.2,3413.1,0.75]
[1718723121467,2.92902,3414.2,3411.8,10.63901982]
[1718723121468,2.92969,3413.4,3412.6,0.75]
[1718723121598,2.92969,3413.4,3412.1,2.4183]
[1718723121599,2.92959,3413.5,3412.4,0.75]
[1718723121940,2.92959,3413.5,3412.0,0.75]
[1718723121941,2.93035,3412.6,3412.0,0.75]
[1718723122169,2.93021,3412.8,3412.0,0.75]
[1718723122431,2.93013,3412.9,3412.0,0.75]
[1718723122432,2.93005,3413.0,3412.0,0.75]
[1718723122618,7.43,3413.3,3411.4,2.4183]
[1718723122619,7.43,3413.3,3411.7,0.75]
[1718723122818,2.93044,3412.5,3411.7,0.75]
[1718723123133,2.93032,3412.6,3411.7,0.75]
[1718723123333,2.93018,3412.8,3411.7,1.06683]
[1718723123536,2.92978,3413.3,3412.3,0.75]
[1718723123839,3.2936,3413.4,3411.7,3.24784]
[1718723123840,3.2936,3413.4,3412.6,0.75]
[1718723124043,6.22325,3413.4,3412.6,0.75]
[1718723124337,2.92981,3413.2,3412.6,0.75]
[1718723124501,2.92997,3413.1,3412.4,0.75]
[1718723124702,3.0,3413.4,3412.6,0.75]
[1718723124933,7.43,3413.9,3413.0,0.75]
[1718723125131,7.43,3413.9,3412.8,2.93012]
[1718723125132,2.92894,3414.2,3413.8,0.75]
[1718723125335,3.22237,3414.4,3413.8,0.75]
[1718723125544,2.9287,3414.5,3413.8,0.75]
[1718723125713,7.43,3414.6,3412.8,3.0]
[1718723125714,2.92903,3414.1,3413.4,0.75]
[1718723126241,7.43,3414.6,3413.8,0.75]
[1718723126443,2.92869,3414.5,3413.8,0.75]
[1718723126640,7.43,3414.6,3413.8,0.75]
[1718723126940,3.0,3414.5,3413.8,0.75]
[1718723127818,5.92873,3414.5,3413.8,0.75]
[1718723128018,7.43,3414.6,3413.4,2.92961]
[1718723128019,7.43,3414.6,3414.2,0.75]
[1718723128200,2.92825,3415.1,3414.2,0.75]
[1718723128426,3.22162,3415.3,3414.5,0.75]
[1718723128427,0.2936,3415.3,3414.5,0.75]
[1718723128631,2.92811,3415.2,3414.5,0.75]
[1718723128833,2.92799,3415.4,3414.5,0.75]
[1718723129050,2.9281,3415.2,3414.5,0.75]
[1718723129932,3.2211,3415.9,3415.2,0.75]
[1718723130127,0.45938524,3416.6,3415.4,0.75]
[1718723130128,0.2936,3416.3,3415.4,0.75]
[1718723130332,2.92748,3415.9,3415.4,0.75]
[1718723130763,3.2208,3416.3,3415.4,0.75]
[1718723130764,2.92738,3416.1,3415.4,0.75]
[1718723130964,2.9275,3415.9,3415.4,0.75]
[1718723131162,0.2936,3416.5,3415.0,0.75]
[1718723131342,2.92791,3415.4,3415.0,0.75]
[1718723131544,6.22076,3416.3,3415.4,0.75]
[1718723131545,0.2936,3416.3,3415.4,0.75]
[1718723131741,2.92731,3416.1,3415.4,0.74866838]
[1718723131942,3.22074,3416.3,3415.4,0.74866838]
[1718723132139,2.92697,3416.5,3415.8,0.74866838]
[1718723132347,2.92722,3416.3,3415.8,0.74866838]
[1718723133229,10.65057,3416.6,3415.8,0.74866838]
[1718723133230,5.85406,3416.5,3415.8,0.74866838]
[1718723133576,2.92716,3416.3,3415.4,0.74866838]
[1718723133781,2.92757,3415.8,3415.4,0.74866838]
[1718723134139,2.9274,3416.0,3415.4,0.74866838]
[1718723134379,2.92731,3416.1,3415.4,0.74866838]
[1718723134556,2.92742,3416.0,3415.4,0.74866838]
[1718723134757,3.0,3416.4,3415.4,0.74866838]
[1718723135067,2.92802,3415.3,3414.2,2.92891]
[1718723135273,2.92835,3414.9,3414.4,0.74866838]
[1718723135471,7.43,3416.0,3413.6,0.3]
[1718723135472,2.92776,3415.6,3413.6,0.3]
[1718723135629,3.0,3415.9,3414.2,0.74866838]
[1718723135630,2.92829,3415.0,3414.2,0.74866838]
[1718723135829,2.92796,3415.4,3414.4,0.74866838]
[1718723136062,2.9286,3414.6,3414.1,0.74866838]
[1718723136255,2.92877,3414.4,3414.1,0.74866838]
[1718723136563,2.92835,3414.9,3414.1,0.74866838]
[1718723136564,2.92852,3414.7,3414.1,0.74866838]
[1718723136731,5.85743,3414.5,3413.4,0.74866838]
[1718723136936,5.85743,3414.5,3412.6,2.3046]
[1718723136937,2.92955,3413.5,3413.0,0.74866838]
[1718723137142,2.92955,3413.5,3412.6,2.3046]
[1718723137143,2.92926,3413.9,3413.2,0.74866838]
[1718723137342,2.92954,3413.5,3412.8,0.74866838]
[1718723137555,2.92971,3413.3,3413.0,0.74866838]
[1718723137775,2.9293,3413.8,3413.0,0.74866838]
[1718723137932,7.43,3414.2,3413.0,0.74866838]
[1718723138264,2.9292,3413.9,3413.0,0.74866838]
[1718723138568,2.92976,3413.3,3412.8,0.74866838]
[1718723138763,2.92997,3413.0,3412.8,0.74866838]
[1718723138963,2.9303,3412.7,3412.3,0.74866838]
[1718723139160,2.9303,3412.7,3411.9,2.4449]
[1718723139161,2.92997,3413.0,3412.5,0.74866838]
[1718723139331,2.93011,3412.9,3412.5,0.74866838]
[1718723139538,2.92989,3413.1,3412.3,0.74866838]
[1718723139832,2.92989,3413.1,3411.9,2.4449]
[1718723139833,2.92989,3413.1,3412.5,0.74866838]
[1718723140343,2.92989,3413.1,3412.3,0.74866838]
[1718723140544,2.92991,3413.1,3412.5,0.74866838]
[1718723140943,2.9304,3412.6,3412.1,0.74866838]
[1718723141158,2.93002,3413.0,3412.1,0.74866838]
[1718723141358,2.93043,3412.5,3412.1,0.74866838]
[1718723141556,2.93002,3413.0,3412.1,0.74866838]
[1718723141752,2.93024,3412.7,3412.1,0.74866838]
[1718723141929,7.43,3413.3,3411.5,5.93125]
[1718723141930,3.0,3413.1,3411.8,0.74866838]
[1718723142137,2.93069,3412.2,3411.8,0.74866838]
[1718723142333,3.0,3413.1,3411.8,0.74866838]
[1718723142534,2.93032,3412.6,3412.0,0.74866838]